fUSD/lending_fUSD_20240422
["ID","MTS","AMOUNT","RATE_DAILY","PERIOD"]
[323224187,1713818003549,-10938.94,0.00016986,2]
[323224188,1713818003560,-500.0,0.00016986,2]
[323224189,1713818003570,-1962.25,0.00016986,2]
[323224190,1713818003579,-2886.61,0.00016986,2]
[323224191,1713818003589,-579.41,0.00016986,2]
[323224192,1713818003598,-1997.87,0.00016986,2]
[323224193,1713818003608,-500.0,0.00016986,2]
[323224194,1713818003618,-53885.3,0.00016986,2]
[323224195,1713818003628,-1244.34,0.00016986,2]
[323224196,1713818003639,-4051.64,0.00016986,2]
[323224197,1713818003649,-1590.37,0.00016986,2]
[323224198,1713818003658,-7669.72,0.00016986,2]
[323224199,1713818003668,-2236.17,0.00016986,2]
[323224200,1713818003678,-2521.35,0.00016986,2]
[323224201,1713818003688,-1645.21,0.00016986,2]
[323224202,1713818003697,-1343.13,0.00016986,2]
[323224203,1713818003707,-1510.42,0.00016986,2]
[323224204,1713818003717,-1028.46,0.00016986,2]
[323224205,1713818003727,-5067.75,0.00016986,2]
[323224206,1713818003738,-803.65,0.00016986,2]
[323224207,1713818003748,-1544.16,0.00016986,2]
[323224208,1713818003758,-754.93,0.00016986,2]
[323224209,1713818003767,-26471.53,0.00016986,2]
[323224210,1713818003777,-1051.95,0.00016986,2]
[323224211,1713818003787,-1582.45,0.00016986,2]
[323224212,1713818003798,-1393.84,0.00016986,2]
[323224213,1713818003809,-11812.41,0.00016986,2]
[323224214,1713818003821,-807.31,0.00016986,2]
[323224215,1713818003832,-1564.41,0.00016986,2]
[323224216,1713818003842,-500.0,0.00016986,2]
[323224217,1713818003853,-3864.45,0.00016986,2]
[323224218,1713818003864,-3718.52,0.00016986,2]
[323224219,1713818003874,-500.0,0.00016986,2]
[323224220,1713818003886,-5811.41,0.00016986,2]
[323224221,1713818003900,-500.0,0.00016986,2]
[323224222,1713818003912,-6037.29,0.00016986,2]
[323224223,1713818003923,-1502.85,0.00016986,2]
[323224224,1713818003934,-2889.09,0.00016986,2]
[323224225,1713818003944,-6389.88,0.00016986,2]
[323224226,1713818003954,-669.89,0.00016986,2]
[323224227,1713818003964,-500.0,0.00016986,2]
[323224228,1713818003975,-500.0,0.00016986,2]
[323224229,1713818003998,-1991.04,0.00016986,2]
[323224230,1713818004017,-5057.75,0.00016986,2]
[323224231,1713818004036,-610.24,0.00016986,2]
[323224232,1713818004055,-2149.82,0.00016986,2]
[323224233,1713818004075,-500.0,0.00016986,2]
[323224234,1713818004094,-2535.93,0.00016986,2]
[323224235,1713818004112,-500.0,0.00016986,2]
[323224236,1713818004132,-2095.61,0.00016986,2]
[323224237,1713818004149,-558.4,0.00016986,2]
[323224238,1713818004167,-9434.59,0.00016986,2]
[323224239,1713818004190,-1851.7,0.00016986,2]
[323224240,1713818004204,-1148.52,0.00016986,2]
[323224241,1713818004219,-2751.02,0.00016986,2]
[323224242,1713818004236,-500.0,0.00016986,2]
[323224243,1713818004256,-2872.2,0.00016986,2]
[323224244,1713818004289,-560.07,0.00016986,2]
[323224245,1713818004307,-2848.87,0.00016986,2]
[323224246,1713818004327,-4572.48,0.00016986,2]
[323224247,1713818004344,-500.0,0.00016986,2]
[323224248,1713818004359,-12108.08,0.00016986,2]
[323224249,1713818004374,-6735.46,0.00016986,2]
[323224250,1713818004392,-4162.92,0.00016986,2]
[323224251,1713818004409,-2605.69,0.00016986,2]
[323224252,1713818004425,-505.78,0.00016986,2]
[323224253,1713818004448,-1139.18,0.00016986,2]
[323224254,1713818004465,-4970.85,0.00016986,2]
[323224255,1713818004480,-5993.52,0.00016986,2]
[323224256,1713818004496,-4558.05,0.00016986,2]
[323224257,1713818004514,-2320.73,0.00016986,2]
[323224258,1713818004529,-38504.87,0.00016986,2]
[323224259,1713818004545,-2509.82,0.00016986,2]
[323224260,1713818004564,-4258.45,0.00016986,2]
[323224261,1713818004580,-782.97,0.00016986,2]
[323224262,1713818004597,-1377.87,0.00016986,2]
[323224263,1713818004613,-266.44539265,0.00016986,2]
[323224264,1713818004629,-2445.43,0.00016986,2]
[323224265,1713818004643,-844.44,0.00016986,2]
[323224266,1713818004658,-1194.19,0.00016986,2]
[323224267,1713818004675,-4269.95,0.00016986,2]
[323224268,1713818004692,-1360.06,0.00016986,2]
[323224269,1713818004708,-535.38,0.00016986,2]
[323224270,1713818004724,-1464.57,0.00016986,2]
[323224271,1713818004741,-519.11,0.00016986,2]
[323224272,1713818004756,-2389.58,0.00016986,2]
[323224273,1713818004772,-4846.13,0.00016986,2]
[323224274,1713818004787,-2486.12,0.00016986,2]
[323224275,1713818004804,-500.0,0.00016986,2]
[323224276,1713818004822,-4078.34,0.00016986,2]
[323224277,1713818004839,-1059.02,0.00016986,2]
[323224278,1713818004856,-9091.85,0.00016986,2]
[323224279,1713818004870,-5188.48,0.00016986,2]
[323224280,1713818004886,-1379.16,0.00016986,2]
[323224281,1713818004904,-3772.2,0.00016986,2]
[323224282,1713818004920,-3845.3,0.00016986,2]
[323224283,1713818004937,-2377.01,0.00016986,2]
[323224284,1713818004952,-3089.82,0.00016986,2]
[323224285,1713818004967,-11616.79,0.00016986,2]
[323224286,1713818004984,-500.0,0.00016986,2]
[323224287,1713818005000,-1036.73,0.00016986,2]
[323224288,1713818005016,-894.91,0.00016986,2]
[323224289,1713818005031,-519.63,0.00016986,2]
[323224290,1713818005048,-500.0,0.00016986,2]
[323224291,1713818005065,-3283.29,0.00016986,2]
[323224292,1713818005081,-574.54,0.00016986,2]
[323224293,1713818005099,-6142.2,0.00016986,2]
[323224294,1713818005115,-7530.97,0.00016986,2]
[323224295,1713818005131,-3119.61,0.00016986,2]
[323224296,1713818005146,-1052.32,0.00016986,2]
[323224297,1713818005162,-1615.52,0.00016986,2]
[323224298,1713818005177,-8074.97,0.00016986,2]
[323224299,1713818005193,-2299.35,0.00016986,2]
[323224300,1713818005209,-1654.01,0.00016986,2]
[323224301,1713818005226,-4170.98,0.00016986,2]
[323224302,1713818005244,-841.29,0.00016986,2]
[323224303,1713818005260,-9718.3,0.00016986,2]
[323224304,1713818005277,-1294.69,0.00016986,2]
[323224305,1713818005292,-580.64,0.00016986,2]
[323224306,1713818005308,-2541.75,0.00016986,2]
[323224307,1713818005325,-500.0,0.00016986,2]
[323224308,1713818005341,-555.29,0.00016986,2]
[323224309,1713818005357,-2729.9,0.00016986,2]
[323224310,1713818005373,-2620.59,0.00016986,2]
[323224311,1713818005389,-1646.2,0.00016986,2]
[323224312,1713818005404,-3612.79,0.00016986,2]
[323224313,1713818005420,-3159.44,0.00016986,2]
[323224314,1713818005434,-5252.04,0.00016986,2]
[323224315,1713818005448,-500.0,0.00016986,2]
[323224316,1713818005462,-500.0,0.00016986,2]
[323224317,1713818005477,-1523.59,0.00016986,2]
[323224318,1713818005491,-608.44,0.00016986,2]
[323224319,1713818005506,-13095.85,0.00016986,2]
[323224320,1713818005521,-5833.37,0.00016986,2]
[323224321,1713818005535,-6897.16,0.00016986,2]
[323224322,1713818005550,-6152.13,0.00016986,2]
[323224323,1713818005565,-1238.36,0.00016986,2]
[323224324,1713818005579,-3299.3,0.00016986,2]
[323224325,1713818005595,-13435.6,0.00016986,2]
[323224326,1713818005609,-943.08,0.00016986,2]
[323224327,1713818005623,-3819.44,0.00016986,2]
[323224328,1713818005637,-1406.96,0.00016986,2]
[323224329,1713818005652,-769.83,0.00016986,2]
[323224330,1713818005667,-500.0,0.00016986,2]
[323224331,1713818005681,-722.61,0.00016986,2]
[323224332,1713818005696,-930.5,0.00016986,2]
[323224333,1713818005710,-500.0,0.00016986,2]
[323224334,1713818005725,-2367.11,0.00016986,2]
[323224335,1713818005739,-780.85,0.00016986,2]
[323224336,1713818005755,-1025.63,0.00016986,2]
[323224337,1713818005771,-7256.26,0.00016986,2]
[323224338,1713818005786,-10754.04,0.00016986,2]
[323224339,1713818005801,-500.0,0.00016986,2]
[323224340,1713818005817,-634.73,0.00016986,2]
[323224341,1713818005833,-500.0,0.00016986,2]
[323224342,1713818005847,-500.0,0.00016986,2]
[323224343,1713818005863,-530.36,0.00016986,2]
[323224344,1713818005878,-6189.49,0.00016986,2]
[323224345,1713818005896,-2911.37,0.00016986,2]
[323224346,1713818005911,-943.08,0.00016986,2]
[323224347,1713818005927,-4556.59,0.00016986,2]
[323224348,1713818005942,-523.92,0.00016986,2]
[323224349,1713818005958,-1833.33,0.00016986,2]
[323224350,1713818005974,-1392.71,0.00016986,2]
[323224351,1713818005990,-664.1,0.00016986,2]
[323224352,1713818006006,-1487.75,0.00016986,2]
[323224353,1713818006022,-500.0,0.00016986,2]
[323224354,1713818006036,-4694.74,0.00016986,2]
[323224355,1713818006051,-1874.89,0.00016986,2]
[323224356,1713818006069,-1392.18,0.00016986,2]
[323224357,1713818006088,-819.7,0.00016986,2]
[323224358,1713818006103,-3597.55,0.00016986,2]
[323224359,1713818006118,-806.58,0.00016986,2]
[323224360,1713818006134,-3150.13,0.00016986,2]
[323224361,1713818006148,-1514.8,0.00016986,2]
[323224362,1713818006163,-702.44,0.00016986,2]
[323224363,1713818006179,-500.0,0.00016986,2]
[323224364,1713818006193,-1715.22,0.00016986,2]
[323224365,1713818006208,-1604.37,0.00016986,2]
[323224366,1713818006223,-1853.0,0.00016986,2]
[323224367,1713818006239,-500.0,0.00016986,2]
[323224368,1713818006253,-1240.407864,0.00016986,2]
[323224369,1713818006268,-290.97,0.00016991,2]
[323224370,1713818006283,-520.59,0.00016991,2]
[323224371,1713818006297,-1000.0,0.00017,2]
[323224372,1713818006313,-2526.0,0.00017,2]
[323224373,1713818006327,-3901.0,0.00017,2]
[323224374,1713818006341,-5000.0,0.00017,2]
[323224375,1713818006355,-52553.76075713,0.00017,2]
[323224376,1713818006369,-523.74751008,0.00017,2]
[323224377,1713818006384,-2000.0,0.00017,2]
[323224378,1713818006399,-415.63197456,0.00017,2]
[323224379,1713818006413,-415.63197456,0.00017,2]
[323224380,1713818006429,-415.63197456,0.00017,2]
[323224381,1713818006443,-150.0,0.00017,2]
[323224382,1713818006459,-150.0,0.00017,2]
[323224383,1713818006474,-1000.0,0.00017071,2]
[323224384,1713818006488,-217.65,0.0001712,2]
[323224385,1713818006503,-3334.0,0.00017126,2]
[323224386,1713818006517,-166.97,0.00017137,2]
[323224387,1713818006532,-167.03,0.00017137,2]
[323224388,1713818006548,-310.08,0.0001721,2]
[323224389,1713818006563,-1000.0,0.00017213,2]
[323224390,1713818006578,-500.0,0.0001726,2]
[323224391,1713818006592,-1058.97,0.0001726,2]
[323224392,1713818006607,-500.0,0.0001726,2]
[323224393,1713818006622,-613.72,0.0001726,2]
[323224394,1713818006637,-540.41,0.0001726,2]
[323224395,1713818006653,-500.0,0.0001726,2]
[323224396,1713818006668,-159.50196926,0.0001726,2]
[323224397,1713818006682,-1669.03,0.0001726,2]
[323224398,1713818006697,-1371.14,0.0001726,2]
[323224399,1713818006712,-548.4585773,0.0001726,2]
[323224400,1713818006727,-776.94,0.0001726,2]
[323224401,1713818006744,-500.0,0.0001726,2]
[323224402,1713818006767,-587.95,0.0001726,2]
[323224403,1713818006782,-1126.73,0.0001726,2]
[323224404,1713818006797,-1027.81,0.0001726,2]
[323224405,1713818006812,-895.63,0.0001726,2]
[323224406,1713818006828,-500.0,0.0001726,2]
[323224407,1713818006844,-560.73,0.0001726,2]
[323224408,1713818006860,-500.0,0.0001726,2]
[323224409,1713818006875,-541.08,0.0001726,2]
[323224410,1713818006892,-500.0,0.0001726,2]
[323224411,1713818006907,-706.11,0.0001726,2]
[323224412,1713818006922,-629.02,0.0001726,2]
[323224413,1713818006937,-584.95,0.0001726,2]
[323224414,1713818006952,-1117.61,0.0001726,2]
[323224415,1713818006966,-1070.74,0.0001726,2]
[323224416,1713818006982,-500.0,0.0001726,2]
[323224417,1713818006997,-1292.86,0.0001726,2]
[323224418,1713818007011,-1409.26,0.0001726,2]
[323224419,1713818007025,-895.28,0.0001726,2]
[323224420,1713818007039,-627.63,0.0001726,2]
[323224421,1713818007440,-1508.56,0.0001726,2]
[323224422,1713818007499,-632.96,0.0001726,2]
[323224423,1713818007509,-461.05650639,0.0001726,2]
[323224424,1713818007518,-500.0,0.0001726,2]
[323224425,1713818007528,-1031.2,0.0001726,2]
[323224426,1713818007538,-500.0,0.0001726,2]
[323224427,1713818007548,-718.9,0.0001726,2]
[323224428,1713818007557,-969.56,0.0001726,2]
[323224429,1713818007567,-500.0,0.0001726,2]
[323224430,1713818007576,-500.0,0.0001726,2]
[323224431,1713818007586,-500.0,0.0001726,2]
[323224432,1713818007596,-1375.45,0.0001726,2]
[323224433,1713818007605,-643.12,0.0001726,2]
[323224434,1713818007615,-1338.67,0.0001726,2]
[323224435,1713818007624,-1299.86,0.0001726,2]
[323224436,1713818007634,-1086.66,0.0001726,2]
[323224437,1713818007643,-1120.16,0.0001726,2]
[323224438,1713818007653,-960.06,0.0001726,2]
[323224439,1713818007662,-500.0,0.0001726,2]
[323224440,1713818007671,-534.21,0.0001726,2]
[323224441,1713818007681,-753.19,0.0001726,2]
[323224442,1713818007691,-500.0,0.0001726,2]
[323224443,1713818007700,-811.84,0.0001726,2]
[323224444,1713818007710,-500.0,0.0001726,2]
[323224445,1713818007720,-1092.53,0.0001726,2]
[323224446,1713818007729,-546.54,0.0001726,2]
[323224447,1713818007739,-1749.53,0.0001726,2]
[323224448,1713818007749,-500.0,0.0001726,2]
[323224449,1713818007758,-1083.17,0.0001726,2]
[323224450,1713818007768,-953.67,0.0001726,2]
[323224451,1713818007777,-500.0,0.0001726,2]
[323224452,1713818007786,-1474.11,0.0001726,2]
[323224453,1713818007796,-1939.69,0.0001726,2]
[323224454,1713818007805,-1150.37,0.0001726,2]
[323224455,1713818007815,-500.0,0.0001726,2]
[323224456,1713818007825,-1191.57,0.0001726,2]
[323224457,1713818007835,-873.37,0.0001726,2]
[323224458,1713818007844,-500.0,0.0001726,2]
[323224459,1713818007855,-548.01,0.0001726,2]
[323224460,1713818007864,-1713.21,0.0001726,2]
[323224461,1713818007873,-860.95,0.0001726,2]
[323224462,1713818007885,-583.38,0.0001726,2]
[323224463,1713818007895,-983.83,0.0001726,2]
[323224464,1713818007904,-778.64,0.0001726,2]
[323224465,1713818007913,-848.86,0.0001726,2]
[323224466,1713818007922,-1645.42,0.0001726,2]
[323224467,1713818007933,-991.23,0.0001726,2]
[323224468,1713818007943,-650.08,0.0001726,2]
[323224469,1713818007953,-919.27,0.0001726,2]
[323224470,1713818007963,-849.94,0.0001726,2]
[323224471,1713818007972,-965.68,0.0001726,2]
[323224472,1713818007982,-648.35,0.0001726,2]
[323224473,1713818007992,-653.61,0.0001726,2]
[323224474,1713818008001,-849.99,0.0001726,2]
[323224475,1713818008011,-872.51,0.0001726,2]
[323224476,1713818008020,-883.24,0.0001726,2]
[323224477,1713818008029,-1446.77,0.0001726,2]
[323224478,1713818008039,-668.79,0.0001726,2]
[323224479,1713818008049,-384.80375749,0.0001726,2]
[323224480,1713818008058,-1711.08,0.0001726,2]
[323224481,1713818008068,-586.1,0.0001726,2]
[323224482,1713818008077,-643.67,0.0001726,2]
[323224483,1713818008086,-1611.58,0.0001726,2]
[323224484,1713818008095,-500.0,0.0001726,2]
[323224485,1713818008104,-710.31,0.0001726,2]
[323224486,1713818008113,-941.73,0.0001726,2]
[323224487,1713818008122,-1122.42,0.0001726,2]
[323224488,1713818008132,-585.05,0.0001726,2]
[323224489,1713818008142,-758.68,0.0001726,2]
[323224490,1713818008151,-844.75,0.0001726,2]
[323224491,1713818008160,-327.86029515,0.0001726,2]
[323224492,1713818008169,-1156.31,0.0001726,2]
[323224493,1713818008179,-905.56,0.0001726,2]
[323224494,1713818008188,-1225.61,0.0001726,2]
[323224495,1713818008197,-500.0,0.0001726,2]
[323224496,1713818008207,-762.49,0.0001726,2]
[323224497,1713818008216,-580.72,0.0001726,2]
[323224498,1713818008225,-1207.15,0.0001726,2]
[323224499,1713818008235,-230.69669595,0.0001726,2]
[323224500,1713818008245,-847.4,0.0001726,2]
[323224501,1713818008255,-889.65,0.0001726,2]
[323224502,1713818008264,-1857.12,0.0001726,2]
[323224503,1713818008274,-1458.35,0.0001726,2]
[323224504,1713818008285,-1346.71,0.0001726,2]
[323224505,1713818008294,-797.75,0.0001726,2]
[323224506,1713818008304,-1384.06,0.0001726,2]
[323224507,1713818008314,-838.1,0.0001726,2]
[323224508,1713818008323,-500.0,0.0001726,2]
[323224509,1713818008332,-666.81,0.0001726,2]
[323224510,1713818008341,-500.0,0.0001726,2]
[323224511,1713818008350,-562.19,0.0001726,2]
[323224512,1713818008360,-515.46,0.0001726,2]
[323224513,1713818008370,-500.0,0.0001726,2]
[323224514,1713818008379,-500.0,0.0001726,2]
[323224515,1713818008388,-1234.42,0.0001726,2]
[323224516,1713818008397,-1329.82,0.0001726,2]
[323224517,1713818008406,-982.2,0.0001726,2]
[323224518,1713818008415,-500.0,0.0001726,2]
[323224519,1713818008424,-500.0,0.0001726,2]
[323224520,1713818008433,-2343.61,0.0001726,2]
[323224521,1713818008442,-1458.64,0.0001726,2]
[323224522,1713818008451,-500.0,0.0001726,2]
[323224523,1713818008460,-847.85,0.0001726,2]
[323224524,1713818008469,-500.0,0.0001726,2]
[323224525,1713818008478,-1545.79,0.0001726,2]
[323224526,1713818008487,-3597.84,0.0001726,2]
[323224527,1713818008496,-715.1,0.0001726,2]
[323224528,1713818008505,-1489.81,0.0001726,2]
[323224529,1713818008514,-1733.17,0.0001726,2]
[323224530,1713818008522,-1331.5,0.0001726,2]
[323224531,1713818008531,-500.0,0.0001726,2]
[323224532,1713818008540,-1524.01,0.0001726,2]
[323224533,1713818008549,-1445.52,0.0001726,2]
[323224534,1713818008558,-521.23,0.0001726,2]
[323224535,1713818008568,-1681.34,0.0001726,2]
[323224536,1713818008578,-1162.45,0.0001726,2]
[323224537,1713818008588,-1395.37,0.0001726,2]
[323224538,1713818008597,-619.96,0.0001726,2]
[323224539,1713818008606,-255.26,0.0001726,2]
[323224540,1713818008615,-500.0,0.0001726,2]
[323224541,1713818008624,-850.51,0.0001726,2]
[323224542,1713818008633,-651.79,0.0001726,2]
[323224543,1713818008643,-500.0,0.0001726,2]
[323224544,1713818008653,-1280.9,0.0001726,2]
[323224545,1713818008662,-500.0,0.0001726,2]
[323224546,1713818008673,-1459.47,0.0001726,2]
[323224547,1713818008682,-500.0,0.0001726,2]
[323224548,1713818008691,-500.0,0.0001726,2]
[323224549,1713818008700,-534.9,0.0001726,2]
[323224550,1713818008709,-538.6,0.0001726,2]
[323224551,1713818008718,-500.0,0.0001726,2]
[323224552,1713818008727,-514.88,0.0001726,2]
[323224553,1713818008736,-537.01,0.0001726,2]
[323224554,1713818008746,-500.0,0.0001726,2]
[323224555,1713818008755,-1610.79,0.0001726,2]
[323224556,1713818008766,-1363.17,0.0001726,2]
[323224557,1713818008777,-786.16,0.0001726,2]
[323224558,1713818008788,-746.38,0.0001726,2]
[323224559,1713818008798,-788.48,0.0001726,2]
[323224560,1713818008806,-500.0,0.0001726,2]
[323224561,1713818008816,-1371.5,0.0001726,2]
[323224562,1713818008831,-500.0,0.0001726,2]
[323224563,1713818008845,-572.35,0.0001726,2]
[323224564,1713818008856,-500.0,0.0001726,2]
[323224565,1713818008865,-1080.61,0.0001726,2]
[323224566,1713818008875,-500.0,0.0001726,2]
[323224567,1713818008884,-1639.44,0.0001726,2]
[323224568,1713818008896,-927.48,0.0001726,2]
[323224569,1713818008905,-1053.33,0.0001726,2]
[323224570,1713818008915,-2417.44,0.0001726,2]
[323224571,1713818008925,-820.45,0.0001726,2]
[323224572,1713818008936,-500.0,0.0001726,2]
[323224573,1713818008945,-616.6,0.0001726,2]
[323224574,1713818008954,-1496.35,0.0001726,2]
[323224575,1713818008963,-500.0,0.0001726,2]
[323224576,1713818008974,-1901.34,0.0001726,2]
[323224577,1713818008984,-1504.69,0.0001726,2]
[323224578,1713818008993,-531.85,0.0001726,2]
[323224579,1713818009003,-1164.49,0.0001726,2]
[323224580,1713818009013,-549.16,0.0001726,2]
[323224581,1713818009023,-1596.3,0.0001726,2]
[323224582,1713818009033,-1438.6,0.0001726,2]
[323224583,1713818009042,-1493.64,0.0001726,2]
[323224584,1713818009051,-625.02511679,0.0001726,2]
[323224585,1713818009061,-693.72,0.0001726,2]
[323224586,1713818009073,-500.0,0.0001726,2]
[323224587,1713818009082,-889.74,0.0001726,2]
[323224588,1713818009091,-1296.17,0.0001726,2]
[323224589,1713818009101,-1184.52,0.0001726,2]
[323224590,1713818009110,-1024.32,0.0001726,2]
[323224591,1713818009120,-1243.7,0.0001726,2]
[323224592,1713818009129,-675.02,0.0001726,2]
[323224593,1713818009139,-2073.0,0.0001726,2]
[323224594,1713818009148,-1364.07,0.0001726,2]
[323224595,1713818009158,-500.0,0.0001726,2]
[323224596,1713818009167,-1245.39,0.0001726,2]
[323224597,1713818009177,-785.15,0.0001726,2]
[323224598,1713818009187,-500.0,0.0001726,2]
[323224599,1713818009198,-1343.23,0.0001726,2]
[323224600,1713818009207,-1627.92,0.0001726,2]
[323224601,1713818009216,-1215.57,0.0001726,2]
[323224602,1713818009225,-1663.91,0.0001726,2]
[323224603,1713818009235,-500.0,0.0001726,2]
[323224604,1713818009244,-1013.21,0.0001726,2]
[323224605,1713818009253,-500.0,0.0001726,2]
[323224606,1713818009262,-1496.62,0.0001726,2]
[323224607,1713818009272,-781.7,0.0001726,2]
[323224608,1713818009281,-1208.61,0.0001726,2]
[323224609,1713818009290,-1291.68,0.0001726,2]
[323224610,1713818009301,-500.0,0.0001726,2]
[323224611,1713818009310,-1167.1,0.0001726,2]
[323224612,1713818009321,-636.48,0.0001726,2]
[323224613,1713818009331,-979.58,0.0001726,2]
[323224614,1713818009340,-751.72,0.0001726,2]
[323224615,1713818009349,-1192.84,0.0001726,2]
[323224616,1713818009359,-507.91,0.0001726,2]
[323224617,1713818009368,-1367.4,0.0001726,2]
[323224618,1713818009377,-525.05,0.0001726,2]
[323224619,1713818009386,-1643.75,0.0001726,2]
[323224620,1713818009395,-500.0,0.0001726,2]
[323224621,1713818009404,-1037.47,0.0001726,2]
[323224622,1713818009413,-1478.09,0.0001726,2]
[323224623,1713818009422,-535.15,0.0001726,2]
[323224624,1713818009431,-500.0,0.0001726,2]
[323224625,1713818009440,-504.89,0.0001726,2]
[323224626,1713818009449,-627.98,0.0001726,2]
[323224627,1713818009458,-1578.31,0.0001726,2]
[323224628,1713818009468,-1198.94,0.0001726,2]
[323224629,1713818009477,-849.45,0.0001726,2]
[323224630,1713818009487,-2383.31,0.0001726,2]
[323224631,1713818009496,-2746.92,0.0001726,2]
[323224632,1713818009506,-500.0,0.0001726,2]
[323224633,1713818009515,-1045.49,0.0001726,2]
[323224634,1713818009524,-500.0,0.0001726,2]
[323224635,1713818009534,-1276.4,0.0001726,2]
[323224636,1713818009543,-1445.62,0.0001726,2]
[323224637,1713818009553,-1072.72,0.0001726,2]
[323224638,1713818009562,-500.0,0.0001726,2]
[323224639,1713818009573,-3284.68,0.0001726,2]
[323224640,1713818009583,-354.3872901,0.0001726,2]
[323224641,1713818009592,-500.0,0.0001726,2]
[323224642,1713818009601,-2296.08,0.0001726,2]
[323224643,1713818009610,-1106.72,0.0001726,2]
[323224644,1713818009619,-851.02,0.0001726,2]
[323224645,1713818009629,-788.12,0.0001726,2]
[323224646,1713818009639,-1533.64,0.0001726,2]
[323224647,1713818009648,-1657.26,0.0001726,2]
[323224648,1713818009657,-2404.29,0.0001726,2]
[323224649,1713818009667,-500.0,0.0001726,2]
[323224650,1713818009676,-2538.83,0.0001726,2]
[323224651,1713818009686,-500.0,0.0001726,2]
[323224652,1713818009695,-1596.02,0.0001726,2]
[323224653,1713818009705,-552.91,0.0001726,2]
[323224654,1713818009714,-1577.46,0.0001726,2]
[323224655,1713818009723,-500.0,0.0001726,2]
[323224656,1713818009733,-1894.81,0.0001726,2]
[323224657,1713818009742,-1468.28,0.0001726,2]
[323224658,1713818009753,-2000.81,0.0001726,2]
[323224659,1713818009762,-595.04,0.0001726,2]
[323224660,1713818009771,-1219.08,0.0001726,2]
[323224661,1713818009780,-881.21,0.0001726,2]
[323224662,1713818009790,-2218.86,0.0001726,2]
[323224663,1713818009799,-533.19,0.0001726,2]
[323224664,1713818009808,-934.67,0.0001726,2]
[323224665,1713818009819,-525.62,0.0001726,2]
[323224666,1713818009828,-500.0,0.0001726,2]
[323224667,1713818009837,-702.91,0.0001726,2]
[323224668,1713818009846,-3676.74,0.0001726,2]
[323224669,1713818009856,-548.67,0.0001726,2]
[323224670,1713818009865,-500.0,0.0001726,2]
[323224671,1713818009874,-2497.52,0.0001726,2]
[323224672,1713818009886,-1077.98,0.0001726,2]
[323224673,1713818009899,-1527.36,0.0001726,2]
[323224674,1713818009908,-1214.09,0.0001726,2]
[323224675,1713818009918,-960.51,0.0001726,2]
[323224676,1713818009927,-1969.14,0.0001726,2]
[323224677,1713818009939,-1099.35,0.0001726,2]
[323224678,1713818009948,-1706.31,0.0001726,2]
[323224679,1713818009958,-1214.51,0.0001726,2]
[323224680,1713818009967,-837.97,0.0001726,2]
[323224681,1713818009977,-626.78336201,0.0001726,2]
[323224682,1713818009987,-2687.48,0.0001726,2]
[323224683,1713818009997,-1339.69,0.0001726,2]
[323224684,1713818010007,-1917.71,0.0001726,2]
[323224685,1713818010016,-500.0,0.0001726,2]
[323224686,1713818010025,-795.76,0.0001726,2]